[Event "Titled Tuesday Blitz May 23 Early 2023"]
[White "Jovic, Stanoje"]
[Black "Vitiugov, Nikita"]
[WhiteFideId "905020"]
[BlackFideId "4152956"]
[WhiteElo "2236"]
[BlackElo "2673"]
[Result "0-1"]
[Round "04"]
[TimeControl "180+2"]
[Date "2023.05.23"]
[WhiteClock "0:00:00"]
[BlackClock "0:00:53"]

1. c4 {[%clk 0:03:00]}  g6 {[%clk 0:02:58]} 2. g3 {[%clk 0:03:01]}  Bg7 {[%clk 0:02:57]} 3. Bg2 {[%clk 0:03:01]}  Nf6 {[%clk 0:02:55]} 4. Nc3 {[%clk 0:03:01]}  O-O {[%clk 0:02:55]} 5. Nf3 {[%clk 0:03:01]}  d6 {[%clk 0:02:54]} 6. O-O {[%clk 0:03:01]}  c5 {[%clk 0:02:33]} 7. d4 {[%clk 0:03:01]}  Nc6 {[%clk 0:02:33]} 8. dxc5 {[%clk 0:03:01]}  dxc5 {[%clk 0:02:34]} 9. Bf4 {[%clk 0:03:01]}  Be6 {[%clk 0:02:31]} 10. Qa4 {[%clk 0:03:01]}  Qa5 {[%clk 0:02:30]} 11. Nd2 {[%clk 0:03:01]}  Qb4 {[%clk 0:02:19]} 12. a3 {[%clk 0:02:59]}  Qxb2 {[%clk 0:02:12]} 13. Rfc1 {[%clk 0:02:58]}  Nd4 {[%clk 0:01:58]} 14. Kf1 {[%clk 0:02:47]}  Bd7 {[%clk 0:01:46]} 15. Qd1 {[%clk 0:02:36]}  Bc6 {[%clk 0:01:34]} 16. Nd5 {[%clk 0:02:22]}  Nxd5 {[%clk 0:01:29]} 17. cxd5 {[%clk 0:02:21]}  Bb5 {[%clk 0:01:29]} 18. Nc4 {[%clk 0:01:58]}  Qxe2+ {[%clk 0:01:25]} 19. Qxe2 {[%clk 0:01:49]}  Nxe2 {[%clk 0:01:25]} 20. Kxe2 {[%clk 0:01:44]}  Bxa1 {[%clk 0:01:24]} 21. Kd2 {[%clk 0:01:09]}  Bd4 {[%clk 0:01:21]} 22. Ne3 {[%clk 0:00:56]}  Rfd8 {[%clk 0:01:11]} 23. Kc2 {[%clk 0:00:44]}  Ba4+ {[%clk 0:01:10]} 24. Kb1 {[%clk 0:00:44]}  Rd7 {[%clk 0:01:07]} 25. Ka2 {[%clk 0:00:41]}  Rad8 {[%clk 0:01:04]} 26. h4 {[%clk 0:00:41]}  b6 {[%clk 0:01:01]} 27. Bh3 {[%clk 0:00:37]}  Bxe3 {[%clk 0:00:58]} 28. Bxe3 {[%clk 0:00:21]}  Rxd5 {[%clk 0:00:56]} 29. Kb2 {[%clk 0:00:21]}  Rd3 {[%clk 0:00:54]} 30. Bf1 {[%clk 0:00:00]}  Rd1 {[%clk 0:00:53]} 0-1


[Site "https://www.chess.com"]

[Event "Titled Tuesday Blitz May 23 Early 2023"]
[White "Doluhanova, Evgeniya"]
[Black "Vakhlamov, Igor L."]
[WhiteFideId "14112035"]
[BlackFideId "24126748"]
[WhiteElo "2159"]
[BlackElo "2407"]
[Result "0-1"]
[Round "04"]
[TimeControl "180+2"]
[Date "2023.05.23"]
[WhiteClock "0:00:10"]
[BlackClock "0:00:22"]

1. Nf3 {[%clk 0:03:00]}  d5 {[%clk 0:02:59]} 2. g3 {[%clk 0:02:59]}  Nf6 {[%clk 0:02:59]} 3. Bg2 {[%clk 0:03:00]}  e6 {[%clk 0:02:59]} 4. O-O {[%clk 0:03:00]}  c5 {[%clk 0:02:59]} 5. d4 {[%clk 0:02:54]}  Nc6 {[%clk 0:02:59]} 6. c3 {[%clk 0:02:48]}  Be7 {[%clk 0:02:56]} 7. Bf4 {[%clk 0:02:46]}  O-O {[%clk 0:02:55]} 8. Nbd2 {[%clk 0:02:44]}  b6 {[%clk 0:02:43]} 9. Ne5 {[%clk 0:02:42]}  Bb7 {[%clk 0:02:40]} 10. Nxc6 {[%clk 0:02:39]}  Bxc6 {[%clk 0:02:41]} 11. h3 {[%clk 0:02:36]}  Re8 {[%clk 0:02:39]} 12. Qc2 {[%clk 0:02:29]}  Rc8 {[%clk 0:02:38]} 13. dxc5 {[%clk 0:02:29]}  Bxc5 {[%clk 0:02:36]} 14. Rad1 {[%clk 0:02:26]}  e5 {[%clk 0:02:33]} 15. Bg5 {[%clk 0:02:25]}  h6 {[%clk 0:02:33]} 16. Bxf6 {[%clk 0:02:23]}  Qxf6 {[%clk 0:02:34]} 17. Nb3 {[%clk 0:02:23]}  e4 {[%clk 0:01:37]} 18. Nxc5 {[%clk 0:02:21]}  bxc5 {[%clk 0:01:38]} 19. e3 {[%clk 0:02:21]}  h5 {[%clk 0:01:38]} 20. h4 {[%clk 0:02:17]}  Bb5 {[%clk 0:01:38]} 21. Rfe1 {[%clk 0:02:16]}  Bd3 {[%clk 0:01:38]} 22. Qa4 {[%clk 0:02:12]}  Re7 {[%clk 0:01:38]} 23. Bh3 {[%clk 0:01:49]}  Rcc7 {[%clk 0:01:37]} 24. Qa3 {[%clk 0:01:41]}  g5 {[%clk 0:01:32]} 25. hxg5 {[%clk 0:01:35]}  Qxg5 {[%clk 0:01:32]} 26. Kh2 {[%clk 0:01:29]}  Re5 {[%clk 0:01:26]} 27. f4 {[%clk 0:01:23]}  exf3 {[%clk 0:01:01]} 28. Rxd3 {[%clk 0:01:22]}  d4 {[%clk 0:00:48]} 29. c4 {[%clk 0:00:42]}  Rce7 {[%clk 0:00:46]} 30. e4 {[%clk 0:00:20]}  f2 {[%clk 0:00:33]} 31. Rf1 {[%clk 0:00:20]}  Rxe4 {[%clk 0:00:34]} 32. Rxf2 {[%clk 0:00:20]}  Re2 {[%clk 0:00:34]} 33. Rf3 {[%clk 0:00:20]}  R7e3 {[%clk 0:00:34]} 34. Qa6 {[%clk 0:00:13]}  Rxf2+ {[%clk 0:00:24]} 35. Rxf2 {[%clk 0:00:13]}  Qxg3+ {[%clk 0:00:25]} 36. Kh1 {[%clk 0:00:10]}  Qxh3+ {[%clk 0:00:22]} 0-1


[Site "https://www.chess.com"]

[Event "Titled Tuesday Blitz May 23 Early 2023"]
[White "Ismagilov, Damir"]
[Black "Sviridov, Valery"]
[WhiteFideId "34199982"]
[BlackFideId "4120680"]
[WhiteElo "2143"]
[BlackElo "2457"]
[Result "0-1"]
[Round "04"]
[TimeControl "180+2"]
[Date "2023.05.23"]
[WhiteClock "0:00:01"]
[BlackClock "0:01:08"]

1. e4 {[%clk 0:03:00]}  c5 {[%clk 0:02:58]} 2. Nf3 {[%clk 0:03:00]}  a6 {[%clk 0:02:58]} 3. g3 {[%clk 0:02:59]}  b5 {[%clk 0:02:58]} 4. d4 {[%clk 0:02:57]}  cxd4 {[%clk 0:02:58]} 5. c3 {[%clk 0:02:55]}  dxc3 {[%clk 0:02:57]} 6. Nxc3 {[%clk 0:02:56]}  Bb7 {[%clk 0:02:58]} 7. Be3 {[%clk 0:02:38]}  e6 {[%clk 0:02:56]} 8. a3 {[%clk 0:02:35]}  Nf6 {[%clk 0:02:55]} 9. e5 {[%clk 0:02:30]}  Ng4 {[%clk 0:02:55]} 10. Bd4 {[%clk 0:02:15]}  Nc6 {[%clk 0:02:54]} 11. Bg2 {[%clk 0:02:14]}  Rc8 {[%clk 0:02:28]} 12. O-O {[%clk 0:01:57]}  Be7 {[%clk 0:02:27]} 13. Ne4 {[%clk 0:01:47]}  Nxd4 {[%clk 0:02:22]} 14. Nxd4 {[%clk 0:01:11]}  Bxe4 {[%clk 0:02:21]} 15. Qxg4 {[%clk 0:01:04]}  Bg6 {[%clk 0:02:18]} 16. Bb7 {[%clk 0:00:51]}  Rb8 {[%clk 0:02:19]} 17. Be4 {[%clk 0:00:38]}  O-O {[%clk 0:02:16]} 18. Rfd1 {[%clk 0:00:38]}  Qb6 {[%clk 0:02:16]} 19. Bxg6 {[%clk 0:00:34]}  hxg6 {[%clk 0:02:17]} 20. h4 {[%clk 0:00:33]}  Rbc8 {[%clk 0:02:17]} 21. Nf3 {[%clk 0:00:28]}  Rc4 {[%clk 0:02:15]} 22. Qh3 {[%clk 0:00:24]}  Rc2 {[%clk 0:02:13]} 23. Qf1 {[%clk 0:00:22]}  Rxb2 {[%clk 0:02:02]} 24. Rxd7 {[%clk 0:00:22]}  Bc5 {[%clk 0:02:03]} 25. Nd2 {[%clk 0:00:18]}  Rd8 {[%clk 0:02:02]} 26. Rxd8+ {[%clk 0:00:18]}  Qxd8 {[%clk 0:02:02]} 27. Ne4 {[%clk 0:00:18]}  Bb6 {[%clk 0:01:59]} 28. Rd1 {[%clk 0:00:18]}  Qa8 {[%clk 0:01:59]} 29. Qg2 {[%clk 0:00:15]}  Qc8 {[%clk 0:01:54]} 30. h5 {[%clk 0:00:11]}  gxh5 {[%clk 0:01:54]} 31. Qf3 {[%clk 0:00:12]}  Rc2 {[%clk 0:01:35]} 32. Qxh5 {[%clk 0:00:09]}  Rc1 {[%clk 0:01:35]} 33. Nd6 {[%clk 0:00:05]}  Rxd1+ {[%clk 0:01:22]} 34. Qxd1 {[%clk 0:00:05]}  Qc5 {[%clk 0:01:21]} 35. Qf3 {[%clk 0:00:06]}  Qc7 {[%clk 0:01:16]} 36. Qa8+ {[%clk 0:00:06]}  Kh7 {[%clk 0:01:13]} 37. Qe4+ {[%clk 0:00:06]}  g6 {[%clk 0:01:13]} 38. Qh4+ {[%clk 0:00:06]}  Kg8 {[%clk 0:01:13]} 39. Ne4 {[%clk 0:00:05]}  Qxe5 {[%clk 0:01:10]} 40. Nf6+ {[%clk 0:00:05]}  Kg7 {[%clk 0:01:09]} 41. Ne8+ {[%clk 0:00:05]}  Kf8 {[%clk 0:01:09]} 42. Nf6 {[%clk 0:00:03]}  Qe1+ {[%clk 0:01:08]} 43. Kg2 {[%clk 0:00:03]}  Qxf2+ {[%clk 0:01:08]} 44. Kh3 {[%clk 0:00:03]}  Qf1+ {[%clk 0:01:08]} 45. Kg4 {[%clk 0:00:01]}  Qf5# {[%clk 0:01:08]} 0-1


[Site "https://www.chess.com"]

[Event "Titled Tuesday Blitz May 23 Early 2023"]
[White "Spata, German"]
[Black "Hakobyan, Aram"]
[WhiteFideId "113026"]
[BlackFideId "13306677"]
[WhiteElo "2260"]
[BlackElo "2584"]
[Result "0-1"]
[Round "04"]
[TimeControl "180+2"]
[Date "2023.05.23"]
[WhiteClock "0:00:00"]
[BlackClock "0:00:30"]

1. Nf3 {[%clk 0:02:51]}  g6 {[%clk 0:03:00]} 2. d4 {[%clk 0:02:51]}  Bg7 {[%clk 0:03:01]} 3. e3 {[%clk 0:02:52]}  Nf6 {[%clk 0:03:01]} 4. Be2 {[%clk 0:02:52]}  O-O {[%clk 0:03:02]} 5. O-O {[%clk 0:02:49]}  d6 {[%clk 0:03:03]} 6. b3 {[%clk 0:02:49]}  Nbd7 {[%clk 0:03:04]} 7. Bb2 {[%clk 0:02:49]}  e5 {[%clk 0:03:04]} 8. dxe5 {[%clk 0:02:49]}  Ng4 {[%clk 0:03:04]} 9. c4 {[%clk 0:02:49]}  Ngxe5 {[%clk 0:03:05]} 10. Nc3 {[%clk 0:02:50]}  Nxf3+ {[%clk 0:03:04]} 11. Bxf3 {[%clk 0:02:50]}  Ne5 {[%clk 0:03:03]} 12. Be2 {[%clk 0:02:49]}  c6 {[%clk 0:03:04]} 13. Qd2 {[%clk 0:02:48]}  Qe7 {[%clk 0:03:02]} 14. Rad1 {[%clk 0:02:48]}  Rd8 {[%clk 0:03:03]} 15. Qc1 {[%clk 0:02:42]}  h5 {[%clk 0:03:03]} 16. Rd2 {[%clk 0:02:35]}  Bg4 {[%clk 0:02:58]} 17. Rfd1 {[%clk 0:02:33]}  Bxe2 {[%clk 0:02:46]} 18. Nxe2 {[%clk 0:02:31]}  h4 {[%clk 0:02:39]} 19. h3 {[%clk 0:02:26]}  a5 {[%clk 0:02:22]} 20. Ba3 {[%clk 0:02:18]}  a4 {[%clk 0:01:35]} 21. Bxd6 {[%clk 0:02:14]}  Qe8 {[%clk 0:01:35]} 22. Bxe5 {[%clk 0:02:13]}  Rxd2 {[%clk 0:01:35]} 23. Qxd2 {[%clk 0:02:12]}  Qxe5 {[%clk 0:01:35]} 24. Qb4 {[%clk 0:01:58]}  axb3 {[%clk 0:01:33]} 25. axb3 {[%clk 0:01:57]}  Ra2 {[%clk 0:01:29]} 26. Nf4 {[%clk 0:01:06]}  Qb2 {[%clk 0:01:28]} 27. Rf1 {[%clk 0:01:01]}  Ra1 {[%clk 0:01:04]} 28. Qxb7 {[%clk 0:00:54]}  Rxf1+ {[%clk 0:01:02]} 29. Kxf1 {[%clk 0:00:55]}  Qb1+ {[%clk 0:01:02]} 30. Ke2 {[%clk 0:00:53]}  Qc2+ {[%clk 0:01:03]} 31. Kf3 {[%clk 0:00:52]}  Qd1+ {[%clk 0:01:03]} 32. Ne2 {[%clk 0:00:48]}  Qd6 {[%clk 0:00:50]} 33. Qc8+ {[%clk 0:00:44]}  Bf8 {[%clk 0:00:44]} 34. Qg4 {[%clk 0:00:44]}  Qd1 {[%clk 0:00:41]} 35. Qxh4 {[%clk 0:00:39]}  Qxb3 {[%clk 0:00:42]} 36. Qe4 {[%clk 0:00:38]}  c5 {[%clk 0:00:33]} 37. g3 {[%clk 0:00:37]}  Qd1 {[%clk 0:00:33]} 38. h4 {[%clk 0:00:36]}  Qh1+ {[%clk 0:00:32]} 39. Kf4 {[%clk 0:00:00]}  Bd6+ {[%clk 0:00:30]} 0-1


[Site "https://www.chess.com"]

[Event "Titled Tuesday Blitz May 23 Early 2023"]
[White "Zakhartsov, Vladimir"]
[Black "Baghdasaryan, Vahe"]
[WhiteFideId "4145097"]
[BlackFideId "13303139"]
[WhiteElo "2495"]
[BlackElo "2216"]
[Result "1-0"]
[Round "04"]
[TimeControl "180+2"]
[Date "2023.05.23"]
[WhiteClock "0:00:04"]
[BlackClock "0:00:00"]

1. e4 {[%clk 0:02:57]}  e5 {[%clk 0:02:58]} 2. Nf3 {[%clk 0:02:55]}  Nc6 {[%clk 0:02:58]} 3. Nc3 {[%clk 0:02:55]}  Nf6 {[%clk 0:02:56]} 4. a3 {[%clk 0:02:56]}  d5 {[%clk 0:02:45]} 5. exd5 {[%clk 0:02:55]}  Nxd5 {[%clk 0:02:45]} 6. Nxe5 {[%clk 0:02:55]}  Nxe5 {[%clk 0:02:46]} 7. Qe2 {[%clk 0:02:55]}  Bd6 {[%clk 0:02:29]} 8. Nxd5 {[%clk 0:02:44]}  O-O {[%clk 0:02:28]} 9. d4 {[%clk 0:02:37]}  Nc6 {[%clk 0:02:23]} 10. Be3 {[%clk 0:02:31]}  Bxa3 {[%clk 0:02:16]} 11. c4 {[%clk 0:02:12]}  Bd6 {[%clk 0:01:29]} 12. g3 {[%clk 0:02:01]}  Re8 {[%clk 0:01:28]} 13. Rd1 {[%clk 0:02:01]}  Nb4 {[%clk 0:01:20]} 14. Bg2 {[%clk 0:01:52]}  Nxd5 {[%clk 0:01:20]} 15. Bxd5 {[%clk 0:01:53]}  Bb4+ {[%clk 0:01:20]} 16. Kf1 {[%clk 0:01:52]}  Bh3+ {[%clk 0:01:20]} 17. Bg2 {[%clk 0:01:51]}  Qd7 {[%clk 0:01:16]} 18. Kg1 {[%clk 0:01:34]}  Rad8 {[%clk 0:00:45]} 19. Qf1 {[%clk 0:01:30]}  Bg4 {[%clk 0:00:38]} 20. Ra1 {[%clk 0:01:30]}  a5 {[%clk 0:00:37]} 21. h3 {[%clk 0:01:23]}  Bf5 {[%clk 0:00:36]} 22. Kh2 {[%clk 0:01:21]}  c6 {[%clk 0:00:35]} 23. Qc1 {[%clk 0:01:11]}  h5 {[%clk 0:00:34]} 24. Rd1 {[%clk 0:01:06]}  h4 {[%clk 0:00:34]} 25. g4 {[%clk 0:01:06]}  Bd6+ {[%clk 0:00:24]} 26. Kh1 {[%clk 0:01:00]}  Bxg4 {[%clk 0:00:21]} 27. hxg4 {[%clk 0:00:57]}  Qxg4 {[%clk 0:00:22]} 28. Rg1 {[%clk 0:00:51]}  h3 {[%clk 0:00:22]} 29. Bxc6 {[%clk 0:00:48]}  Qf5 {[%clk 0:00:19]} 30. Bxb7 {[%clk 0:00:35]}  Re4 {[%clk 0:00:16]} 31. Qd1 {[%clk 0:00:28]}  Rde8 {[%clk 0:00:16]} 32. Rxa5 {[%clk 0:00:20]}  Qxa5 {[%clk 0:00:12]} 33. Bxe4 {[%clk 0:00:21]}  Rxe4 {[%clk 0:00:12]} 34. Qf3 {[%clk 0:00:21]}  Re8 {[%clk 0:00:07]} 35. c5 {[%clk 0:00:21]}  Bb8 {[%clk 0:00:07]} 36. Qxh3 {[%clk 0:00:18]}  Qc7 {[%clk 0:00:07]} 37. Kg2 {[%clk 0:00:15]}  Re6 {[%clk 0:00:06]} 38. Qf3 {[%clk 0:00:11]}  Qa5 {[%clk 0:00:04]} 39. Qd5 {[%clk 0:00:09]}  Rg6+ {[%clk 0:00:03]} 40. Kh1 {[%clk 0:00:09]}  Qc7 {[%clk 0:00:01]} 41. Qh5 {[%clk 0:00:04]}  Qb7+ {[%clk 0:00:01]} 42. d5 {[%clk 0:00:04]}  Qxb2 {[%clk 0:00:01]} 43. Rxg6 {[%clk 0:00:04]}  fxg6 {[%clk 0:00:02]} 44. Qxg6 {[%clk 0:00:04]}  Qe5 {[%clk 0:00:01]} 45. Qe6+ {[%clk 0:00:04]}  Qxe6 {[%clk 0:00:01]} 46. dxe6 {[%clk 0:00:05]}  Kf8 {[%clk 0:00:01]} 47. c6 {[%clk 0:00:04]}  Ke7 {[%clk 0:00:02]} 48. Bb6 {[%clk 0:00:04]}  Kd6 {[%clk 0:00:01]} 49. e7 {[%clk 0:00:04]}  Bc7 {[%clk 0:00:02]} 50. Bxc7+ {[%clk 0:00:04]}  Kxe7 {[%clk 0:00:00]} 51. Bg3 {[%clk 0:00:04]} 1-0


[Site "https://www.chess.com"]

[Event "Titled Tuesday Blitz May 23 Early 2023"]
[White "Hansen, Eric"]
[Black "Shevtchenko, Olesya"]
[WhiteFideId "2606771"]
[BlackFideId "24131890"]
[WhiteElo "2561"]
[BlackElo "2003"]
[Result "1-0"]
[Round "04"]
[TimeControl "180+2"]
[Date "2023.05.23"]
[WhiteClock "0:01:53"]
[BlackClock "0:00:13"]

1. f4 {[%clk 0:03:00]}  d5 {[%clk 0:02:55]} 2. Nf3 {[%clk 0:03:00]}  Nf6 {[%clk 0:02:54]} 3. b3 {[%clk 0:03:01]}  g6 {[%clk 0:02:55]} 4. Bb2 {[%clk 0:03:02]}  Bg7 {[%clk 0:02:55]} 5. e3 {[%clk 0:03:02]}  O-O {[%clk 0:02:56]} 6. Be2 {[%clk 0:03:03]}  a5 {[%clk 0:02:56]} 7. O-O {[%clk 0:03:02]}  a4 {[%clk 0:02:56]} 8. Qe1 {[%clk 0:02:57]}  Nc6 {[%clk 0:02:56]} 9. a3 {[%clk 0:02:55]}  Bf5 {[%clk 0:02:51]} 10. Qd1 {[%clk 0:02:48]}  Nd7 {[%clk 0:02:40]} 11. Bxg7 {[%clk 0:02:48]}  Kxg7 {[%clk 0:02:41]} 12. Bb5 {[%clk 0:02:40]}  axb3 {[%clk 0:02:38]} 13. cxb3 {[%clk 0:02:40]}  Ncb8 {[%clk 0:02:19]} 14. Qc1 {[%clk 0:02:37]}  c6 {[%clk 0:02:18]} 15. Be2 {[%clk 0:02:37]}  Na6 {[%clk 0:02:16]} 16. b4 {[%clk 0:02:36]}  Nc7 {[%clk 0:02:15]} 17. Nc3 {[%clk 0:02:35]}  f6 {[%clk 0:02:11]} 18. Nd4 {[%clk 0:02:34]}  Be6 {[%clk 0:02:07]} 19. Ncb5 {[%clk 0:02:26]}  Bg8 {[%clk 0:01:54]} 20. Nxc7 {[%clk 0:02:26]}  Qxc7 {[%clk 0:01:55]} 21. f5 {[%clk 0:02:27]}  Ne5 {[%clk 0:01:44]} 22. Qc3 {[%clk 0:02:26]}  Qd6 {[%clk 0:01:42]} 23. a4 {[%clk 0:02:23]}  e6 {[%clk 0:01:41]} 24. fxe6 {[%clk 0:02:19]}  Bxe6 {[%clk 0:01:42]} 25. Qc5 {[%clk 0:02:19]}  Qd7 {[%clk 0:01:37]} 26. h3 {[%clk 0:02:11]}  Bxh3 {[%clk 0:01:16]} 27. gxh3 {[%clk 0:02:11]}  Qxh3 {[%clk 0:01:14]} 28. Rf2 {[%clk 0:02:12]}  Rae8 {[%clk 0:00:57]} 29. Rh2 {[%clk 0:02:09]}  Qg3+ {[%clk 0:00:54]} 30. Rg2 {[%clk 0:02:09]}  Qh3 {[%clk 0:00:51]} 31. Rf1 {[%clk 0:02:09]}  Nd7 {[%clk 0:00:42]} 32. Qd6 {[%clk 0:02:07]}  Ne5 {[%clk 0:00:32]} 33. Rf4 {[%clk 0:02:02]}  h5 {[%clk 0:00:28]} 34. Rh4 {[%clk 0:01:59]}  Qd7 {[%clk 0:00:18]} 35. Qxd7+ {[%clk 0:01:54]}  Nxd7 {[%clk 0:00:19]} 36. Bxh5 {[%clk 0:01:52]}  Ne5 {[%clk 0:00:16]} 37. Bxg6 {[%clk 0:01:52]}  Nxg6 {[%clk 0:00:16]} 38. Rhg4 {[%clk 0:01:53]}  Kf7 {[%clk 0:00:13]} 39. Rxg6 {[%clk 0:01:53]} 1-0


[Site "https://www.chess.com"]

[Event "Titled Tuesday Blitz May 23 Early 2023"]
[White "Siva Mahadevan"]
[Black "Gontcharov, Vladislav"]
[WhiteFideId "25043153"]
[BlackFideId "4123492"]
[WhiteElo "2249"]
[BlackElo "2420"]
[Result "0-1"]
[Round "04"]
[TimeControl "180+2"]
[Date "2023.05.23"]
[WhiteClock "0:01:04"]
[BlackClock "0:00:27"]

1. e4 {[%clk 0:02:53]}  e6 {[%clk 0:02:59]} 2. Nc3 {[%clk 0:02:53]}  d5 {[%clk 0:02:59]} 3. d4 {[%clk 0:02:54]}  Bb4 {[%clk 0:02:58]} 4. e5 {[%clk 0:02:54]}  c5 {[%clk 0:02:58]} 5. a3 {[%clk 0:02:55]}  Bxc3+ {[%clk 0:02:58]} 6. bxc3 {[%clk 0:02:56]}  Ne7 {[%clk 0:02:58]} 7. a4 {[%clk 0:02:57]}  Qc7 {[%clk 0:02:51]} 8. Nf3 {[%clk 0:02:57]}  O-O {[%clk 0:02:45]} 9. h4 {[%clk 0:02:57]}  b6 {[%clk 0:02:40]} 10. h5 {[%clk 0:02:56]}  h6 {[%clk 0:02:36]} 11. Bd3 {[%clk 0:02:53]}  Ba6 {[%clk 0:02:32]} 12. O-O {[%clk 0:02:47]}  Bxd3 {[%clk 0:02:31]} 13. Qxd3 {[%clk 0:02:48]}  Nbc6 {[%clk 0:02:24]} 14. Ba3 {[%clk 0:02:49]}  Na5 {[%clk 0:01:58]} 15. Nd2 {[%clk 0:02:48]}  Rac8 {[%clk 0:01:44]} 16. Rae1 {[%clk 0:02:14]}  Rfd8 {[%clk 0:01:35]} 17. Qh3 {[%clk 0:02:03]}  Nc4 {[%clk 0:01:17]} 18. Nxc4 {[%clk 0:02:00]}  dxc4 {[%clk 0:01:17]} 19. dxc5 {[%clk 0:02:00]}  bxc5 {[%clk 0:01:12]} 20. Re4 {[%clk 0:02:00]}  Rd5 {[%clk 0:01:09]} 21. Rfe1 {[%clk 0:01:59]}  Nc6 {[%clk 0:00:57]} 22. Qg3 {[%clk 0:01:59]}  Ne7 {[%clk 0:00:35]} 23. Bc1 {[%clk 0:01:57]}  Kh7 {[%clk 0:00:30]} 24. Rxc4 {[%clk 0:01:53]}  Nf5 {[%clk 0:00:30]} 25. Qf4 {[%clk 0:01:53]}  Rcd8 {[%clk 0:00:30]} 26. g4 {[%clk 0:01:52]}  Rd1 {[%clk 0:00:31]} 27. Re4 {[%clk 0:01:52]}  Nh4 {[%clk 0:00:29]} 28. Qg3 {[%clk 0:01:47]}  Qc6 {[%clk 0:00:28]} 29. Kf1 {[%clk 0:01:04]}  Qxe4 {[%clk 0:00:27]} 0-1


[Site "https://www.chess.com"]

[Event "Titled Tuesday Blitz May 23 Early 2023"]
[White "Gharibyan, Mamikon"]
[Black "Tologon tegin, Semetei"]
[WhiteFideId "13308300"]
[BlackFideId "13800574"]
[WhiteElo "2445"]
[BlackElo "2247"]
[Result "1-0"]
[Round "04"]
[TimeControl "180+2"]
[Date "2023.05.23"]
[WhiteClock "0:01:20"]
[BlackClock "0:00:00"]

1. b3 {[%clk 0:03:00]}  e5 {[%clk 0:02:47]} 2. Bb2 {[%clk 0:03:00]}  Nc6 {[%clk 0:02:48]} 3. e3 {[%clk 0:02:58]}  Nf6 {[%clk 0:02:43]} 4. Bb5 {[%clk 0:02:58]}  Bd6 {[%clk 0:02:41]} 5. Na3 {[%clk 0:02:56]}  Na5 {[%clk 0:02:40]} 6. Nc4 {[%clk 0:02:52]}  Nxc4 {[%clk 0:02:39]} 7. Bxc4 {[%clk 0:02:53]}  c6 {[%clk 0:02:37]} 8. g4 {[%clk 0:02:51]}  Qe7 {[%clk 0:02:33]} 9. g5 {[%clk 0:02:43]}  Ne4 {[%clk 0:02:19]} 10. h4 {[%clk 0:02:40]}  Bc7 {[%clk 0:02:18]} 11. Nf3 {[%clk 0:02:22]}  d5 {[%clk 0:02:17]} 12. Be2 {[%clk 0:02:18]}  O-O {[%clk 0:02:09]} 13. Rg1 {[%clk 0:02:13]}  f6 {[%clk 0:01:53]} 14. a3 {[%clk 0:02:01]}  fxg5 {[%clk 0:01:49]} 15. hxg5 {[%clk 0:01:58]}  c5 {[%clk 0:01:43]} 16. d3 {[%clk 0:01:54]}  Nxf2 {[%clk 0:01:18]} 17. Kxf2 {[%clk 0:01:43]}  e4 {[%clk 0:01:18]} 18. dxe4 {[%clk 0:01:43]}  dxe4 {[%clk 0:01:19]} 19. Qd5+ {[%clk 0:01:42]}  Kh8 {[%clk 0:01:19]} 20. Rh1 {[%clk 0:01:39]}  Bf5 {[%clk 0:01:16]} 21. Nh4 {[%clk 0:01:32]}  Qxg5 {[%clk 0:00:49]} 22. Rag1 {[%clk 0:01:27]}  Bg4+ {[%clk 0:00:42]} 23. Ke1 {[%clk 0:01:23]}  Qxd5 {[%clk 0:00:42]} 24. Ng6+ {[%clk 0:01:22]}  Kg8 {[%clk 0:00:38]} 25. Ne7+ {[%clk 0:01:22]}  Kf7 {[%clk 0:00:38]} 26. Nxd5 {[%clk 0:01:23]}  Ba5+ {[%clk 0:00:05]} 27. b4 {[%clk 0:01:21]}  cxb4 {[%clk 0:00:00]} 28. axb4 {[%clk 0:01:20]} 1-0


[Site "https://www.chess.com"]

[Event "Titled Tuesday Blitz May 23 Early 2023"]
[White "Harsh Suresh"]
[Black "Sukandar, Irine Kharisma"]
[WhiteFideId "45018464"]
[BlackFideId "7101937"]
[WhiteElo "2209"]
[BlackElo "2315"]
[Result "1-0"]
[Round "04"]
[TimeControl "180+2"]
[Date "2023.05.23"]
[WhiteClock "0:00:09"]
[BlackClock "0:00:00"]

1. e4 {[%clk 0:03:00]}  c5 {[%clk 0:02:58]} 2. Nc3 {[%clk 0:03:00]}  a6 {[%clk 0:02:57]} 3. a4 {[%clk 0:02:56]}  Nc6 {[%clk 0:02:55]} 4. g3 {[%clk 0:02:56]}  g6 {[%clk 0:02:49]} 5. Bg2 {[%clk 0:02:56]}  Bg7 {[%clk 0:02:50]} 6. Nge2 {[%clk 0:02:56]}  Nf6 {[%clk 0:02:50]} 7. O-O {[%clk 0:02:56]}  O-O {[%clk 0:02:50]} 8. d3 {[%clk 0:02:56]}  Rb8 {[%clk 0:02:32]} 9. f4 {[%clk 0:02:45]}  d6 {[%clk 0:02:25]} 10. h3 {[%clk 0:02:45]}  Nb4 {[%clk 0:02:20]} 11. Be3 {[%clk 0:02:40]}  b5 {[%clk 0:02:19]} 12. axb5 {[%clk 0:02:40]}  axb5 {[%clk 0:02:19]} 13. Qd2 {[%clk 0:02:40]}  Qc7 {[%clk 0:02:00]} 14. g4 {[%clk 0:02:39]}  d5 {[%clk 0:01:41]} 15. exd5 {[%clk 0:01:17]}  Rd8 {[%clk 0:01:35]} 16. f5 {[%clk 0:01:00]}  Nfxd5 {[%clk 0:01:33]} 17. Nxd5 {[%clk 0:00:54]}  Nxd5 {[%clk 0:01:33]} 18. c3 {[%clk 0:00:34]}  Nxe3 {[%clk 0:01:28]} 19. Qxe3 {[%clk 0:00:35]}  Bb7 {[%clk 0:01:24]} 20. Ra7 {[%clk 0:00:34]}  Qb6 {[%clk 0:01:11]} 21. Rxb7 {[%clk 0:00:35]}  Rxb7 {[%clk 0:01:11]} 22. Bxb7 {[%clk 0:00:35]}  Qxb7 {[%clk 0:01:12]} 23. Ng3 {[%clk 0:00:27]}  b4 {[%clk 0:00:47]} 24. Ne4 {[%clk 0:00:27]}  bxc3 {[%clk 0:00:45]} 25. bxc3 {[%clk 0:00:28]}  Qd5 {[%clk 0:00:28]} 26. Rf3 {[%clk 0:00:22]}  c4 {[%clk 0:00:26]} 27. d4 {[%clk 0:00:22]}  Ra8 {[%clk 0:00:25]} 28. Qf4 {[%clk 0:00:16]}  Ra1+ {[%clk 0:00:24]} 29. Rf1 {[%clk 0:00:16]}  Rxf1+ {[%clk 0:00:22]} 30. Kxf1 {[%clk 0:00:17]}  gxf5 {[%clk 0:00:10]} 31. Qxf5 {[%clk 0:00:15]}  Qc6 {[%clk 0:00:07]} 32. Ng5 {[%clk 0:00:11]}  Qh1+ {[%clk 0:00:02]} 33. Kf2 {[%clk 0:00:11]}  Qh2+ {[%clk 0:00:01]} 34. Ke1 {[%clk 0:00:08]}  Qg3+ {[%clk 0:00:00]} 35. Kd2 {[%clk 0:00:09]} 1-0


[Site "https://www.chess.com"]